Cogmind - Beta 13 @@@ ROGUE MODE // 2024.04.07 @ 15:02:34 Player: _An Result: Destroyed by G-34 Mercenary with Small Laser Performance ------------- Evolutions (0) 0 Regions Visited (1) 200 Robots Destroyed (12) 60 Value Destroyed (223) 223 Prototype IDs (0) 0 Alien Tech Used (0) 0 Bonus (0) 0 TOTAL SCORE: 483 Bonus ------- None Cogmind --------- Core Integrity 0/250 Matter 290/300 Energy 97/100 System Corruption 0% Temperature Cool (6) Movement Core (150) Ox2 Location -10/Materials Parts ------- > --- POWER (1) -------- (None) > --- PROPULSION (2) --- Flight Unit > --- UTILITY (2) ------ Small Storage Unit Improved Terrain Scanner > --- WEAPON (2) ------- Light Assault Rifle > --- INVENTORY (8) ---- Light Ion Engine Signal Interpreter Hardened Light Armor Plating Hardened Light Armor Plating Hardened Light Armor Plating Hardened Light Armor Plating Grenade Launcher Peak State ------------ > --- POWER ------------ Ion Engine > --- PROPULSION ------- Wheel Compact Wheel > --- UTILITY ---------- Small Storage Unit Improved Terrain Scanner > --- WEAPON ----------- Medium Laser Assault Rifle > --- INVENTORY -------- Light Ion Engine Hardened Light Armor Plating Hardened Light Armor Plating Hardened Light Armor Plating Hardened Light Armor Plating Grenade Launcher [Rating: 10] Favorites ----------- Power Ion Engine Engine Ion Engine Propulsion Wheel Wheel Wheel Flight Unit Flight Unit Utility Small Storage Unit Device Improved Terrain Scanner Storage Small Storage Unit Weapon Medium Laser Energy Gun Medium Laser Ballistic Gun Assault Rifle Build | -11 -10 ------- Run | Yrd Mat Slots Evolved . | . . Power . | . . Propulsion . | . . Utility . | . . Weapon . | . . Parts Attached 9 | 7 2 Power 1 | 1 . Engine 1 | 1 . Core . | . . Reactor . | . . Propulsion 3 | 2 1 Treads . | . . Leg . | . . Wheel 2 | 2 . Hover . | . . Flight 1 | . 1 Utility 2 | 2 . Device 1 | 1 . Storage 1 | 1 . Processor . | . . Hackware . | . . Protection . | . . Artifact . | . . Weapon 3 | 2 1 Energy Gun 1 | 1 . Energy Cannon . | . . Ballistic Gun 2 | 1 1 Ballistic Cannon . | . . Launcher . | . . Special Weapon . | . . Impact Weapon . | . . Slashing Weapon . | . . Piercing Weapon . | . . Special Melee Weapon . | . . Unidentified Prototypes . | . . Parts Lost 5 | . 5 Power 1 | . 1 Propulsion 2 | . 2 Utility . | . . Weapon 2 | . 2 Highest Loss Streak 5 | . 5 To Critical Strikes . | . . Average Slot Usage (%) 91 | . 91 Engine 12 | . 12 Wheel 23 | . 23 Flight 1 | . 1 Device 14 | . 14 Storage 14 | . 14 Energy Gun 12 | . 12 Ballistic Gun 11 | . 11 Naked Turns . | . . Heaviest Build 15 | 15 15 Greatest Support 26 | 26 26 Greatest Overweight (x) 3 | . 3 Average Overweight (x) . | . . Largest Inventory Capacity 8 | 8 8 Average Capacity 7 | 7 8 Most Carried 7 | 1 7 Average Carried 4 | . 5 Final Capacity 8 | 8 8 Final Carried 7 | 1 7 Class Distribution -------------------- 100% | Mutant Dominant Class ---------------- Mutant | -10/Materials Resources | -11 -10 ----------- Run | Yrd Mat Matter Collected 332 | 249 83 Remotely . | . . Salvage Created 303 | 55 248 Parts 22 | 6 16 Haulers Intercepted . | . . Recyclers Shooed . | . . Parts Field Recycled . | . . Retrieved Matter . | . . Parts Self-Destructed . | . . Prevented . | . . Kills | -11 -10 ------- Run | Yrd Mat Combat Hostiles Destroyed 10 | . 10 Guns 10 | . 10 Classes Destroyed 3 | 1 2 Tunneler 2 | 2 . Swarmer 6 | . 6 Grunt 4 | . 4 Best Kill Streak 5 | 2 5 Combat Bots Only 5 | . 5 Max Kills in Single Turn 2 | 2 1 Gunslinging . | . . Exploded . | . . Melee . | . . Uniques/NPCs Destroyed . | . . Combat | -11 -10 -------- Run | Yrd Mat Hostile Shots Fired 72 | . 72 Missed 15 | . 15 Damage Taken 616 | . 616 Core 261 | . 261 Absorbed by Shields . | . . Core Remaining (%) 100 | 100 . Volleys Fired 40 | 1 39 Largest 2 | 2 2 Hottest 70 | 70 70 Shots Fired 61 | 2 59 Gun 61 | 2 59 Cannon . | . . Launcher . | . . Special . | . . Kinetic 21 | 1 20 Thermal 40 | 1 39 Explosive . | . . Electromagnetic . | . . Robot Hit Streak 10 | 1 10 Robot Miss Streak 3 | 1 3 Penetration Max . | . . Secondary Targets 2 | . 2 Max Gunslinging Chain 1 | . 1 Shots Hit Robots 37 | 1 36 Core Hits 18 | 2 16 Critical Kills . | . . Critical Parts Destroyed . | . . Critical Strikes 1 | . 1 Burn 1 | . 1 Melee Attacks . | . . Impact . | . . Slashing . | . . Piercing . | . . Sneak Attacks . | . . Combat Hostiles . | . . Follow-up Attacks . | . . Damage Inflicted 472 | 23 449 Guns 472 | 23 449 Cannons . | . . Explosions . | . . Melee . | . . Ramming . | . . Kinetic 133 | 10 123 Thermal 339 | 13 326 Explosive . | . . Electromagnetic . | . . Impact . | . . Slashing . | . . Piercing . | . . Highest Corruption . | . . Average Corruption . | . . Corruption Purged . | . . Corruption Blocked . | . . Overload Shots . | . . Overflow Damage . | . . Projectiles . | . . Explosions . | . . Melee . | . . Knockbacks . | . . Impact . | . . Kinetic . | . . Secondary . | . . Self-Inflicted Damage . | . . Shots . | . . Rammed . | . . Targets Rammed . | . . Kicked . | . . Crushed . | . . Highest Temperature 271 | 9 271 Average Temperature 113 | 6 115 Received Heat Transfer 204 | . 204 Effects 2 | . 2 Energy Bleed 1 | . 1 Interference 1 | . 1 Siege Activations . | . . Robots Corrupted . | . . Combat Hostiles . | . . Parts Fried . | . . Impact Corruptions . | . . Robots Melted . | . . Combat Hostiles . | . . Parts Melted 4 | 1 3 Heat Transferred 1073 | 37 1036 Parts Sabotaged . | . . Parts Stolen . | . . Parts Stripped . | . . Power Chain Reactions . | . . Alert | -11 -10 ------- Run | Yrd Mat Peak Influence 269 | 10 269 Initial 6 | . 6 Average 103 | 1 126 Maximum Alert Level 1 | . 1 Low Security (%) 76 | 100 71 Level 1 23 | . 28 Level 2 . | . . Level 3 . | . . Level 4 . | . . Level 5 . | . . High Security . | . . Max Security . | . . Squads Dispatched 1 | . 1 Investigation 1 | . 1 Extermination . | . . Reinforcement . | . . Assault . | . . Garrison . | . . Intercept . | . . Searches Triggered . | . . Construction Impeded . | . . Haulers Reinforced . | . . Active Scanning Responses . | . . Cargo Convoy Interrupts . | . . Stealth | -11 -10 --------- Run | Yrd Mat Distress Signals 3 | . 3 Communications Jammed . | . . Distress Signals . | . . Times Spotted 14 | . 14 Peak Tracking Total 7 | . 7 Tactical Retreats 1 | . 1 Traps | -11 -10 ------- Run | Yrd Mat Traps Triggered . | . . Indirectly . | . . Trap Hack Attempts . | . . Triggered . | . . Disarmed . | . . Reprogrammed . | . . Reused . | . . Traps Extracted . | . . Installed . | . . Triggered . | . . Machines | -11 -10 ---------- Run | Yrd Mat Machines Disabled . | . . Max in Single Turn . | . . Machines Repaired . | . . Machines Dismantled . | . . Machines Sabotaged . | . . Overloaded Fab Kills . | . . Hacking | -11 -10 --------- Run | Yrd Mat Machines Accessed 1 | . 1 Terminals 1 | . 1 Fabricators . | . . Repair Stations . | . . Recycling Units . | . . Scanalyzers . | . . Garrison Access . | . . Total Hacks 5 | . 5 Successful 1 | . 1 Failed 4 | . 4 Catastrophic 1 | . 1 Database Lockouts . | . . Manual 5 | . 5 Terminals 5 | . 5 Fabricators . | . . Repair Stations . | . . Recycling Units . | . . Scanalyzers . | . . Garrison Access . | . . Terminal Hacks 1 | . 1 Branch Access Points 1 | . 1 Fabricator Hacks . | . . Repair Station Hacks . | . . Recycling Unit Hacks . | . . Scanalyzer . | . . Garrison Access Hacks . | . . Unauthorized Hacks . | . . Terminals . | . . Fabricators . | . . Repair Stations . | . . Recycling Units . | . . Scanalyzers . | . . Garrison Access . | . . Data Cores Recovered . | . . Used . | . . Hacking Detections 1 | . 1 Full Trace Events 1 | . 1 Feedback Events . | . . Feedback Blocked . | . . Robot Schematics Acquired . | . . Robots Built . | . . Authchips . | . . Time . | . . Total Robot Build Rating . | . . Part Schematics Acquired . | . . Parts Built . | . . Authchips . | . . Time . | . . Total Part Build Rating . | . . Parts Repaired . | . . Time . | . . Parts Recycled . | . . Recycled Matter . | . . Retrieved Matter . | . . Retrieved Components . | . . Parts Scanalyzed . | . . Part Schematics Acquired . | . . Parts Damaged . | . . Bothacking | -11 -10 ------------ Run | Yrd Mat Used RIF Installer . | . . Robots Hacked . | . . Non-combat . | . . Combat . | . . Robot Hacks Applied . | . . Relay Couplers Released . | . . Fabnet Peak Effective % . | . . Robots Rewired . | . . Allies Hacked . | . . Hacks Repelled . | . . Allies | -11 -10 -------- Run | Yrd Mat Total Allies . | . . Largest Group . | . . Highest-Rated Group . | . . Highest-Rated Ally . | . . Total Orders . | . . Ally Attacks . | . . Total Damage . | . . Kills . | . . Allies Corrupted . | . . Allies Melted . | . . Intel | -11 -10 ------- Run | Yrd Mat Robot Analysis Total . | . . Derelict Logs Recovered . | . . Drone Launches . | . . Drone Recoveries . | . . Exploration | -11 -10 ------------- Run | Yrd Mat Turns Passed 325 | 58 267 Spaces Moved 195 | 48 147 Core 22 | 2 20 Treads . | . . Legs . | . . Wheels 173 | 46 127 Hover . | . . Flight . | . . Fastest Speed 50 | 50 90 Average Speed 92 | 87 93 Slowest Speed 200 | 90 200 Overloaded Moves . | . . Propulsion Burnouts . | . . Robots Hopped . | . . Cave-ins Triggered . | . . Exploration Rate (%) 15 | 4 26 Regions Visited 1 Branch Regions . Pre-discovered Areas . | . . Known Exits Taken . | . . Unknown Exits Taken 1 | 1 . Scrap Searched . | . . Spaces Dug . | . . Terrain Destroyed . | . . Melee . | . . Projectile . | . . AOE . | . . Terrain Rammed . | . . Walls Destroyed . | . . Machines Disabled . | . . Actions | -11 -10 --------- Run | Yrd Mat Total 275 | 58 217 Wait 25 | 2 23 Move 194 | 47 147 Hop . | . . Pick Up 7 | 1 6 Fast Attach 9 | 7 2 Attach . | . . Detach . | . . Swap . | . . Drop . | . . Fire 40 | 1 39 Melee . | . . Ram . | . . Kick . | . . Crush . | . . Escape Stasis . | . . Rewire . | . . Trap . | . . Miscellaneous . | . . Route ------- -11/Scrapyard -10/Materials (discovered 2 exits: Min x2) History --------- Turn | Location | Event 32 | -11/Scrapyard | Discovered new exit (range 15) 59 | -11/Scrapyard | Entered Materials 219 | -10/Materials | Identified exit to Mines 249 | -10/Materials | Core integrity fell below 50% 323 | -10/Materials | Core integrity fell below 20% 326 | -10/Materials | Destroyed by G-34 Mercenary with Small Laser Last Messages --------------- S-10 Pest suffers critical hit (Burn). S-10 Pest destroyed. Flight Unit melted. S-10 Pest destroyed. Wheel destroyed. Com. Wheel destroyed. G-34 Mercenary heat short circuits Aluminum Leg. G-34 Mercenary destroyed. Overheating: Energy bleed (-42). Med. Laser destroyed. Ion Engine destroyed. Acquired Flight Unit. M-13 Machinist repairs G-34 Mercenary. Acquired 10 matter. R-06 Scavenger collects Lgt. Ion Engine. Acquired Lgt. Assault Rifle. R-06 Scavenger destroyed. T-07 Excavator destroyed. M-13 Machinist destroyed. U-05 Engineer lays Concrete. Map ----- +----------------------------------------------------+ | ??????????????????????? ??> ?????????????????????? | | ????? ??????????????? ?? ????????????????????????? | | ????????????????????#?#??? ??????????????????????? | | ????????????????????#?#???"????????? ????????????? | | ???????????#???????????????????????? ????????????? | | ??????????????#?????###########??? ??????????????? | | ????????????????#?#?# #??????????????????? | | ?????????????#??????# """"" !#??????????????????? | | ?????#?????########?# ""T"" #???"???#??????????? | | ######????##!!]] ### #???#??????????????? | | #?????#!!]] #?# #??????????????????? | | #?????# #?# #?#?#? ????????????? | | #?????# ##?# # ##???????????????? | | #?????# ########+#####k###??????????????? | | #?????# % # "????????????? | | #?????# a !????????? | | #?????# # """??????????? | | #?????# #??????????????? | | +################ g #???? ?????????? | | a^ u u #??????????????? | | ^ * #####??????????? | | ^^ = %! %= ?????????? | | ###+############## %! ????????? | | # #????###???# ! ?????????? | | # #?????????## *g #######????????? | | # """ #???######## % *@ #??????????????? | | ### """ #?#?# =%! #???? ?????????? | | ??# """ #???# #???? ?????????? | | ?## #??## +????????????? | | ??# *######+####### ###????????????? | | ??######## #?[[ #??????????????? | | ?????????# ##[[ ########+##?#????????????? | | ?????????# ! """ ##]] #???????????? ???????????? | | ?????????# """ ##]] #???????????"????????????? | | ??????#??# """ ##!! #????????????????????????? | | #????????# """ ##!! ##???????????????????????? | | ?????????# "Y" #####?#???????????????????????? | | ?????????# """ #???#?????????????????????????? | | ?????????###########?????????????????????????????? | | | | | | | | | | | | | | | | | | | | | | | +----------------------------------------------------+ Best States ------------- Heat Dissipation 25 Energy Generation 10 Energy Capacity 250 Matter Stores 300 Matter Capacity 300 Sight Range 16 Terrain Scan Range 16 Terrain Scan Density 10 Evasion (%) 42 Item Schematics ----------------- None Robot Schematics ------------------ None Fabricated ------------ Nothing Alien Tech Used ----------------- None Achievements -------------- None Challenges ------------ None Game ------ Seed ArchitectUtilityTriangulator Manual? 0 Play Time 00:04:49 Cumulative 21.3 hours Start 2024.04.07 @ 14:59:51 End 2024.04.07 @ 15:02:34 Sessions 1 Manual Loads 0 Difficulty Rogue Special Mode None Game No. 36 Rogue 36 Adventurer 0 Explorer 0 Win Type - Total 0 Types 0/0/0/0/0/0/0/0/0 Lore% 13 Gallery% 31 Achievement% 27 Wizard Run 0 Options --------- Layout 1 ASCII 0 Keyboard 1 Movement Numpad Keybinds 0 Fullscreen 1 Font 32/SmallcapsGlow Map View 50x35 Zoom Use 0% Tactical HUD 0 Map Filters NONE Filters NONE Steam 1 RUN: eba24822-b1c4-4339-99c5-e271d50e39bc